fUST/lending_fUST_20250627
["ID","MTS","AMOUNT","RATE_DAILY","PERIOD"]
[368106821,1751025042715,-460.0,0.0002,2]
[368106823,1751025042725,-460.0,0.0002,2]
[368106825,1751025042734,-526.41,0.0002,2]
[368106827,1751025042745,-688.08,0.0002,2]
[368106829,1751025042755,-460.0,0.0002,2]
[368106831,1751025042764,-460.0,0.0002,2]
[368106833,1751025042774,-460.0,0.0002,2]
[368106835,1751025042784,-460.0,0.0002,2]
[368106836,1751025042793,-460.0,0.0002,2]
[368106839,1751025042802,-529.26,0.0002,2]
[368106841,1751025042812,-1615.19,0.0002,2]
[368106842,1751025042820,-460.0,0.0002,2]
[368106844,1751025042830,-2146.35,0.0002,2]
[368106846,1751025042839,-1204.86,0.0002,2]
[368106848,1751025042848,-1173.98,0.0002,2]
[368106850,1751025042858,-460.0,0.0002,2]
[368106852,1751025042867,-955.78,0.0002,2]
[368106854,1751025042876,-460.0,0.0002,2]
[368106856,1751025042886,-631.92,0.0002,2]
[368106858,1751025042895,-265.3,0.0002,2]
[368106860,1751025042904,-4016.24,0.0002,2]
[368106862,1751025042914,-1392.47,0.0002,2]
[368106864,1751025042923,-1659.93,0.0002,2]
[368106866,1751025042933,-747.26,0.0002,2]
[368106868,1751025042942,-768.85,0.0002,2]
[368106870,1751025042951,-581.43,0.0002,2]
[368106872,1751025042961,-460.0,0.0002,2]
[368106874,1751025042971,-601.87,0.0002,2]
[368106876,1751025042980,-516.57,0.0002,2]
[368106878,1751025042990,-460.0,0.0002,2]
[368106880,1751025042999,-471.16412517,0.0002,2]
[368106882,1751025043008,-498.78,0.0002,2]
[368106884,1751025043017,-724.34,0.0002,2]
[368106886,1751025043027,-474.67,0.0002,2]
[368106888,1751025043037,-460.0,0.0002,2]
[368106890,1751025043046,-413.07799668,0.0002,2]
[368106892,1751025043055,-2778.62,0.0002,2]
[368106894,1751025043064,-1383.61,0.0002,2]
[368106896,1751025043074,-918.56,0.0002,2]
[368106898,1751025043083,-680.31,0.0002,2]
[368106900,1751025043094,-460.0,0.0002,2]
[368106902,1751025043103,-499.21,0.0002,2]
[368106904,1751025043112,-2237.58,0.0002,2]
[368106906,1751025043121,-460.0,0.0002,2]
[368106908,1751025043131,-153.0,0.0002,2]
[368106910,1751025043140,-460.0,0.0002,2]
[368106912,1751025043149,-503.64,0.0002,2]
[368106914,1751025043158,-247.06,0.0002,2]
[368106916,1751025043168,-2454.22,0.0002,2]
[368106918,1751025043177,-460.0,0.0002,2]
[368106920,1751025043186,-3026.27,0.0002,2]
[368106922,1751025043196,-916.9,0.0002,2]
[368106924,1751025043206,-460.0,0.0002,2]
[368106926,1751025043215,-460.0,0.0002,2]
[368106928,1751025043225,-647.64,0.0002,2]
[368106930,1751025043234,-460.0,0.0002,2]
[368106932,1751025043243,-592.45743595,0.0002,2]
[368106934,1751025043253,-460.0,0.0002,2]
[368106936,1751025043262,-5647.51,0.0002,2]
[368106938,1751025043271,-460.0,0.0002,2]
[368106941,1751025043280,-3448.85,0.0002,2]
[368106943,1751025043290,-581.25,0.0002,2]
[368106945,1751025043298,-460.0,0.0002,2]
[368106960,1751025043423,-1249.31,0.0002,2]
[368106962,1751025043433,-153.0,0.0002,2]
[368106964,1751025043442,-3601.13,0.0002,2]
[368106966,1751025043452,-460.0,0.0002,2]
[368106968,1751025043461,-657.99,0.0002,2]
[368106970,1751025043471,-460.0,0.0002,2]
[368106972,1751025043480,-259.68,0.0002,2]
[368106974,1751025043489,-460.0,0.0002,2]
[368106976,1751025043498,-549.23525287,0.00020029,2]
[368106978,1751025043508,-1493.39746614,0.00020041,2]
[368106980,1751025043517,-500.0,0.0002008,2]
[368106982,1751025043527,-500.0,0.0002008,2]
[368106984,1751025043536,-177.66,0.00020083,2]
[368106986,1751025043546,-207.4,0.00020088,2]
[368106988,1751025043555,-151.0,0.00020088,2]
[368106990,1751025043564,-5000.0,0.00020088,2]
[368106992,1751025043573,-500.0,0.00020088,2]
[368106994,1751025043582,-500.0,0.00020088,2]
[368106996,1751025043591,-500.0,0.00020088,2]
[368106998,1751025043601,-666.0,0.00020088,2]
[368107000,1751025043611,-500.0,0.00020088,2]
[368107002,1751025043620,-500.0,0.00020088,2]
[368107004,1751025043629,-500.0,0.00020088,2]
[368107006,1751025043639,-500.0,0.00020088,2]
[368107008,1751025043648,-500.0,0.00020088,2]
[368107010,1751025043658,-500.0,0.00020088,2]
[368107012,1751025043670,-500.0,0.00020088,2]
[368107014,1751025043679,-500.0,0.00020088,2]
[368107016,1751025043689,-4290.37088558,0.00020088,2]
[368107018,1751025043698,-500.0,0.00020088,2]
[368107020,1751025043708,-500.0,0.00020088,2]
[368107022,1751025043717,-200.0,0.00020088,2]
[368107024,1751025043727,-500.0,0.00020088,2]
[368107026,1751025043736,-300.0,0.00020088,2]
[368107028,1751025043747,-500.0,0.00020088,2]
[368107030,1751025043756,-500.0,0.00020088,2]
[368107032,1751025043765,-151.0,0.00020088,2]
[368107034,1751025043774,-500.0,0.00020088,2]
[368107036,1751025043783,-500.0,0.00020088,2]
[368107038,1751025043792,-151.0,0.00020088,2]
[368107040,1751025043802,-500.0,0.00020088,2]
[368107042,1751025043811,-500.0,0.00020088,2]
[368107044,1751025043820,-151.0,0.00020088,2]
[368107046,1751025043829,-500.0,0.00020088,2]
[368107048,1751025043838,-500.0,0.00020088,2]
[368107050,1751025043847,-500.0,0.00020088,2]
[368107052,1751025043856,-151.0,0.00020088,2]
[368107054,1751025043866,-500.0,0.00020088,2]
[368107056,1751025043875,-500.0,0.00020088,2]
[368107058,1751025043884,-151.0,0.00020088,2]
[368107060,1751025043894,-500.0,0.00020088,2]
[368107062,1751025043903,-151.0,0.00020088,2]
[368107064,1751025043912,-500.0,0.00020088,2]
[368107066,1751025043921,-500.0,0.00020088,2]
[368107068,1751025043930,-151.0,0.00020088,2]
[368107070,1751025043940,-500.0,0.00020088,2]
[368107072,1751025043950,-500.0,0.00020088,2]
[368107074,1751025043959,-151.0,0.00020088,2]
[368107076,1751025043969,-500.0,0.00020088,2]
[368107078,1751025043978,-500.0,0.00020088,2]
[368107079,1751025043988,-151.0,0.00020088,2]
[368107081,1751025043997,-500.0,0.00020088,2]
[368107083,1751025044006,-151.0,0.00020088,2]
[368107085,1751025044015,-500.0,0.00020088,2]
[368107087,1751025044025,-151.0,0.00020088,2]
[368107089,1751025044034,-500.0,0.00020088,2]
[368107091,1751025044043,-151.0,0.00020088,2]
[368107093,1751025044052,-500.0,0.00020088,2]
[368107095,1751025044061,-151.0,0.00020088,2]
[368107097,1751025044070,-151.0,0.00020088,2]
[368107099,1751025044080,-246.62150823,0.00020088,2]
[368107100,1751025044090,-151.0,0.00020088,2]
[368107101,1751025044099,-151.0,0.00020088,2]
[368107102,1751025044108,-151.0,0.00020088,2]
[368107103,1751025044117,-151.0,0.00020088,2]
[368107104,1751025044126,-151.0,0.00020088,2]
[368107105,1751025044135,-288.89272804,0.00020088,2]
[368107106,1751025044144,-227.54651037,0.00020088,2]
[368107107,1751025044154,-25000.0,0.00020088,2]
[368107108,1751025044163,-10630.46488409,0.00020088,2]
[368107109,1751025044172,-690.642,0.00020143,2]
[368107110,1751025044182,-2731.0,0.00020158,2]
[368107111,1751025044192,-716.195754,0.00020198,2]
[368107112,1751025044201,-300.56217115,0.0002022,2]
[368107113,1751025044210,-381677.09691,0.00020252,2]
[368107114,1751025044219,-742.6949969,0.00020253,2]
[368107115,1751025044229,-548.44,0.00020273,2]
[368107116,1751025044238,-460.0,0.00020273,2]
[368107117,1751025044248,-460.0,0.00020273,2]
[368107119,1751025044257,-729.93,0.00020273,2]
[368107121,1751025044266,-460.0,0.00020273,2]
[368107123,1751025044275,-460.0,0.00020273,2]
[368107125,1751025044285,-460.0,0.00020273,2]
[368107127,1751025044294,-460.0,0.00020273,2]
[368107129,1751025044303,-688.08,0.00020273,2]
[368107131,1751025044312,-460.0,0.00020273,2]
[368107133,1751025044321,-460.0,0.00020273,2]
[368107134,1751025044330,-460.0,0.00020273,2]
[368107136,1751025044339,-460.0,0.00020273,2]
[368107138,1751025044348,-460.0,0.00020273,2]
[368107140,1751025044357,-529.26,0.00020273,2]
[368107142,1751025044366,-1615.19,0.00020273,2]
[368107144,1751025044376,-340.75,0.00020273,2]
[368107146,1751025044385,-2146.35,0.00020273,2]
[368107148,1751025044394,-1204.86,0.00020273,2]
[368107150,1751025044405,-1173.98,0.00020273,2]
[368107152,1751025044415,-460.0,0.00020273,2]
[368107154,1751025044424,-955.78,0.00020273,2]
[368107156,1751025044433,-546.21,0.00020273,2]
[368107158,1751025044442,-631.92,0.00020273,2]
[368107160,1751025044452,-4016.24,0.00020273,2]
[368107162,1751025044461,-1392.47,0.00020273,2]
[368107164,1751025044471,-1659.93,0.00020273,2]
[368107166,1751025044479,-747.26,0.00020273,2]
[368107168,1751025044489,-768.85,0.00020273,2]
[368107170,1751025044498,-581.43,0.00020273,2]
[368107172,1751025044508,-460.0,0.00020273,2]
[368107174,1751025044518,-601.87,0.00020273,2]
[368107176,1751025044528,-516.57,0.00020273,2]
[368107178,1751025044537,-460.0,0.00020273,2]
[368107180,1751025044547,-498.78,0.00020273,2]
[368107182,1751025044556,-724.34,0.00020273,2]
[368107184,1751025044565,-460.0,0.00020273,2]
[368107186,1751025044575,-2778.62,0.00020273,2]
[368107188,1751025044585,-1383.61,0.00020273,2]
[368107190,1751025044594,-918.56,0.00020273,2]
[368107192,1751025044603,-680.31,0.00020273,2]
[368107194,1751025044612,-499.21,0.00020273,2]
[368107196,1751025044621,-2237.58,0.00020273,2]
[368107198,1751025044631,-460.0,0.00020273,2]
[368107200,1751025044640,-460.0,0.00020273,2]
[368107202,1751025044650,-503.64,0.00020273,2]
[368107204,1751025044659,-2454.22,0.00020273,2]
[368107206,1751025044670,-460.0,0.00020273,2]
[368107207,1751025044680,-3026.27,0.00020273,2]
[368107209,1751025044689,-916.9,0.00020273,2]
[368107211,1751025044698,-460.0,0.00020273,2]
[368107213,1751025044708,-647.64,0.00020273,2]
[368107215,1751025044719,-460.0,0.00020273,2]
[368107217,1751025044728,-460.0,0.00020273,2]
[368107219,1751025044738,-5647.51,0.00020273,2]
[368107221,1751025044747,-460.0,0.00020273,2]
[368107223,1751025044758,-3448.85,0.00020273,2]
[368107225,1751025044767,-581.25,0.00020273,2]
[368107227,1751025044776,-460.0,0.00020273,2]
[368107229,1751025044786,-1249.31,0.00020273,2]
[368107231,1751025044796,-3601.13,0.00020273,2]
[368107233,1751025044805,-657.99,0.00020273,2]
[368107235,1751025044814,-460.0,0.00020273,2]
[368107237,1751025044824,-306.0,0.00020274,2]
[368107239,1751025044833,-770.17471178,0.00020308,2]
[368107241,1751025044843,-500.0,0.00020329,2]
[368107243,1751025044852,-798.67117612,0.00020363,2]
[368107245,1751025044861,-366.1147399,0.00020389,2]
[368107247,1751025044871,-1000.0,0.0002039,2]
[368107249,1751025044880,-1000.0,0.0002039,2]
[368107251,1751025044890,-1000.0,0.0002039,2]
[368107253,1751025044899,-366.1147399,0.00020391,2]
[368107255,1751025044908,-1000.0,0.00020401,2]
[368107257,1751025044917,-1000.0,0.00020401,2]
[368107259,1751025044927,-500.0,0.00020404,2]
[368107261,1751025044936,-501.50572642,0.00020404,2]
[368107263,1751025044945,-224.00444455,0.00020404,2]
[368107265,1751025044955,-1002.18333495,0.00020404,2]
[368107267,1751025044965,-500.59761066,0.00020404,2]
[368107269,1751025044975,-617.83311831,0.00020404,2]
[368107271,1751025044984,-915.22701992,0.00020418,2]
[368107273,1751025044993,-179.31461861,0.00020446,2]
[368107275,1751025045002,-1493.39746614,0.00020455,2]
[368107277,1751025045012,-1044.0,0.00020463,2]
[368107279,1751025045021,-1000.0,0.000205,2]
[368107281,1751025045030,-1000.0,0.000205,2]
[368107283,1751025045039,-1000.0,0.000205,2]
[368107285,1751025045048,-1000.0,0.000205,2]
[368107287,1751025045057,-1006.63485112,0.000205,2]
[368107289,1751025045066,-1003.72718248,0.0002051,2]
[368107291,1751025045078,-1000.0,0.0002051,2]
[368107293,1751025045087,-1000.0,0.00020522,2]
[368107294,1751025045096,-548.44,0.00020547,2]
[368107296,1751025045105,-460.0,0.00020547,2]
[368107299,1751025045116,-729.93,0.00020547,2]
[368107300,1751025045124,-326.64766857,0.00020547,2]
[368107302,1751025045134,-460.0,0.00020547,2]
[368107304,1751025045143,-460.0,0.00020547,2]
[368107306,1751025045152,-460.0,0.00020547,2]
[368107308,1751025045161,-688.08,0.00020547,2]
[368107310,1751025045170,-460.0,0.00020547,2]
[368107312,1751025045179,-460.0,0.00020547,2]
[368107314,1751025045188,-460.0,0.00020547,2]
[368107316,1751025045198,-460.0,0.00020547,2]
[368107318,1751025045207,-460.0,0.00020547,2]
[368107320,1751025045217,-529.26,0.00020547,2]
[368107322,1751025045226,-1615.19,0.00020547,2]
[368107324,1751025045235,-2146.35,0.00020547,2]
[368107326,1751025045244,-1204.86,0.00020547,2]
[368107328,1751025045254,-1173.98,0.00020547,2]
[368107330,1751025045263,-460.0,0.00020547,2]
[368107332,1751025045272,-955.78,0.00020547,2]
[368107334,1751025045281,-631.92,0.00020547,2]
[368107336,1751025045290,-4016.24,0.00020547,2]
[368107338,1751025045299,-1392.47,0.00020547,2]
[368107340,1751025045309,-1519.32077091,0.00020547,2]
[368107343,1751025045328,-140.60922909,0.00020547,2]
[368107345,1751025045337,-747.26,0.00020547,2]
[368107347,1751025045346,-768.85,0.00020547,2]
[368107349,1751025045356,-581.43,0.00020547,2]
[368107351,1751025045365,-460.0,0.00020547,2]
[368107353,1751025045374,-601.87,0.00020547,2]
[368107355,1751025045384,-516.57,0.00020547,2]
[368107357,1751025045393,-460.0,0.00020547,2]
[368107359,1751025045402,-498.78,0.00020547,2]
[368107361,1751025045411,-724.34,0.00020547,2]
[368107363,1751025045420,-460.0,0.00020547,2]
[368107364,1751025045429,-2778.62,0.00020547,2]
[368107366,1751025045439,-1383.61,0.00020547,2]
[368107368,1751025045448,-918.56,0.00020547,2]
[368107370,1751025045458,-680.31,0.00020547,2]
[368107372,1751025045467,-499.21,0.00020547,2]
[368107374,1751025045476,-2237.58,0.00020547,2]
[368107376,1751025045485,-460.0,0.00020547,2]
[368107378,1751025045494,-460.0,0.00020547,2]
[368107380,1751025045503,-503.64,0.00020547,2]
[368107382,1751025045513,-2454.22,0.00020547,2]
[368107384,1751025045523,-479.69541879,0.00020547,2]
[368107386,1751025045532,-3026.27,0.00020547,2]
[368107388,1751025045541,-916.9,0.00020547,2]
[368107390,1751025045550,-460.0,0.00020547,2]
[368107392,1751025045560,-647.64,0.00020547,2]
[368107394,1751025045569,-460.0,0.00020547,2]
[368107396,1751025045578,-5647.51,0.00020547,2]
[368107398,1751025045588,-460.0,0.00020547,2]
[368107400,1751025045597,-3448.85,0.00020547,2]
[368107402,1751025045606,-581.25,0.00020547,2]
[368107404,1751025045616,-460.0,0.00020547,2]
[368107406,1751025045626,-1249.31,0.00020547,2]
[368107408,1751025045635,-3601.13,0.00020547,2]
[368107410,1751025045645,-657.99,0.00020547,2]
[368107412,1751025045654,-460.0,0.00020547,2]
[368107414,1751025045664,-583.30433523,0.00020569,2]
[368107416,1751025045676,-1044.0,0.00020591,2]
[368107418,1751025045685,-3776.49,0.000206,2]
[368107420,1751025045695,-2272.60725259,0.0002061,2]
[368107423,1751025045707,-458.39274741,0.0002061,2]
[368107424,1751025045717,-170.6105707,0.00020634,2]
[368107508,1751025046505,-460.0,0.00019178,2]
[368107510,1751025046516,-460.0,0.00019178,2]
[368107512,1751025046525,-336.28479433,0.00019452,2]
[368107514,1751025046537,-123.71520567,0.00019452,2]
[368107516,1751025046546,-194.97224731,0.00019726,2]
[368107519,1751025046592,5000.0,0.000191,2]
[368107533,1751025046739,-460.0,0.00019178,2]
[368107535,1751025046750,-460.0,0.00019178,2]
[368107537,1751025046760,-312.46743727,0.00019178,2]
[368107539,1751025046770,-265.02775269,0.00019726,2]
[368107541,1751025046779,-151.0,0.00019863,2]
[368107543,1751025046790,-151.79432947,0.0001989,2]
[368107545,1751025046801,-388.17832244,0.00020273,2]
[368107547,1751025046814,-71.82167756,0.00020273,2]
[368107550,1751025046824,-460.0,0.00020547,2]
[368107552,1751025046834,-546.64790373,0.00020634,2]
[368107554,1751025046844,-5000.0,0.00020636,2]
[368107556,1751025046854,-25000.0,0.00020636,2]
[368107558,1751025046864,-151.0,0.000207,4]
[368107560,1751025046874,-445.54291544,0.00020794,2]
[368107562,1751025046884,-1044.0,0.00020796,2]
[368107564,1751025046894,-151.0,0.000208,4]
[368107566,1751025046904,-548.44,0.00020821,2]
[368107568,1751025046914,-460.0,0.00020821,2]
[368107570,1751025046923,-992.689,0.00020821,2]
[368107572,1751025046934,-177.44968208,0.00020821,2]
[368107574,1751025046946,-0.41006469,0.00020821,2]
[368107576,1751025046956,-729.93,0.00020821,2]
[368107578,1751025046966,-270.95121832,0.00020821,2]
[368107581,1751025046978,-189.04878168,0.00020821,2]
[368107582,1751025046987,-460.0,0.00020821,2]
[368107585,1751025046997,-460.0,0.00020821,2]
[368107587,1751025047007,-688.08,0.00020821,2]
[368107589,1751025047016,-460.0,0.00020821,2]
[368107591,1751025047025,-460.0,0.00020821,2]
[368107593,1751025047034,-460.0,0.00020821,2]
[368107595,1751025047043,-460.0,0.00020821,2]
[368107597,1751025047054,-529.26,0.00020821,2]
[368107599,1751025047063,-547.69811824,0.00020821,2]
[368107611,1751025047171,610.1953215,0.00018789,2]
[368107613,1751025047183,-563.50131298,0.00019178,2]
[368107615,1751025047192,-524.47,0.00019178,2]
[368107617,1751025047203,-1067.49188176,0.00020821,2]
[368107619,1751025047212,-2146.35,0.00020821,2]
[368107622,1751025047225,-1204.86,0.00020821,2]
[368107624,1751025047236,-1173.98,0.00020821,2]
[368107626,1751025047247,-460.0,0.00020821,2]
[368107628,1751025047256,-955.78,0.00020821,2]
[368107630,1751025047266,-631.92,0.00020821,2]
[368107632,1751025047276,-4016.24,0.00020821,2]
[368107634,1751025047286,-1392.47,0.00020821,2]
[368107636,1751025047296,-1659.93,0.00020821,2]
[368107638,1751025047306,-747.26,0.00020821,2]
[368107641,1751025047319,-768.85,0.00020821,2]
[368107643,1751025047328,-581.43,0.00020821,2]
[368107645,1751025047338,-255.01862992,0.00020821,2]
[368107647,1751025047347,-601.87,0.00020821,2]
[368107649,1751025047357,-516.57,0.00020821,2]
[368107651,1751025047366,-460.0,0.00020821,2]
[368107653,1751025047376,-498.78,0.00020821,2]
[368107655,1751025047385,-724.34,0.00020821,2]
[368107657,1751025047395,-460.0,0.00020821,2]
[368107659,1751025047404,-2778.62,0.00020821,2]
[368107661,1751025047414,-1383.61,0.00020821,2]
[368107663,1751025047423,-918.56,0.00020821,2]
[368107665,1751025047434,-680.31,0.00020821,2]
[368107667,1751025047443,-499.21,0.00020821,2]
[368107669,1751025047453,-2237.58,0.00020821,2]
[368107671,1751025047462,-463.27,0.00020821,2]
[368107673,1751025047472,-460.0,0.00020821,2]
[368107675,1751025047481,-503.64,0.00020821,2]
[368107677,1751025047490,-2454.22,0.00020821,2]
[368107679,1751025047500,-3026.27,0.00020821,2]
[368107681,1751025047510,-916.9,0.00020821,2]
[368107683,1751025047520,-460.0,0.00020821,2]
[368107685,1751025047529,-647.64,0.00020821,2]
[368107688,1751025047539,-460.0,0.00020821,2]
[368107690,1751025047548,-5647.51,0.00020821,2]
[368107692,1751025047558,-460.0,0.00020821,2]
[368107694,1751025047567,-581.25,0.00020821,2]
[368107696,1751025047576,-3448.85,0.00020821,2]
[368107698,1751025047585,-460.0,0.00020821,2]
[368107700,1751025047595,-1249.31,0.00020821,2]
[368107702,1751025047604,-3601.13,0.00020821,2]
[368107704,1751025047614,-657.99,0.00020821,2]
[368107706,1751025047624,-460.0,0.00020821,2]
[368107708,1751025047634,-460.0,0.00020821,2]
[368107710,1751025047643,-153.0,0.00020822,2]
[368107712,1751025047652,-153.0,0.00020822,2]
[368107714,1751025047661,-1613.83156746,0.00020822,2]
[368107716,1751025047676,-1493.39746614,0.0002087,2]
[368107718,1751025047688,-420.0,0.00020899,2]
[368107720,1751025047697,-151.0,0.000209,4]
[368107723,1751025047707,-8456.76208025,0.000209,4]
[368107724,1751025047716,-300.144,0.00020938,2]
[368107727,1751025047726,-1500.0,0.00020938,2]
[368107729,1751025047736,-1511.55355153,0.00020949,2]
[368107731,1751025047748,-549.23525287,0.0002098,2]
[368107733,1751025047757,-1044.0,0.00020996,2]
[368107735,1751025047766,-151.0,0.00021,3]
[368107737,1751025047776,-2014.00755465,0.00021,2]
[368107739,1751025047785,-2869.0338977,0.00021011,2]
[368107741,1751025047794,-1500.0,0.00021048,2]
[368107743,1751025047803,-1126.359762,0.00021069,4]
[368107745,1751025047813,-8456.76207998,0.00021072,4]
[368107747,1751025047822,-970.0,0.00021086,2]
[368107749,1751025047831,-284.037329,0.00021093,2]
[368107751,1751025047841,-173.143746,0.00021093,2]
[368107753,1751025047851,-173.143746,0.00021093,2]
[368107755,1751025047860,-151.0,0.00021093,2]
[368107757,1751025047870,-62630.56842044,0.00021093,2]
[368107759,1751025047879,-152.369318,0.00021095,2]
[368107761,1751025047889,-151.0,0.00021095,2]
[368107763,1751025047898,-151.0,0.00021095,2]
[368107765,1751025047908,-548.44,0.00021095,2]
[368107767,1751025047917,-460.0,0.00021095,2]
[368107769,1751025047927,-729.93,0.00021095,2]
[368107771,1751025047936,-460.0,0.00021095,2]
[368107773,1751025047946,-460.0,0.00021095,2]
[368107775,1751025047955,-460.0,0.00021095,2]
[368107777,1751025047965,-688.08,0.00021095,2]
[368107779,1751025047974,-460.0,0.00021095,2]
[368107781,1751025047984,-460.0,0.00021095,2]
[368107783,1751025047994,-460.0,0.00021095,2]
[368107785,1751025048004,-529.26,0.00021095,2]
[368107787,1751025048013,-1615.19,0.00021095,2]
[368107789,1751025048023,-2146.35,0.00021095,2]
[368107792,1751025048032,-1204.86,0.00021095,2]
[368107794,1751025048043,-1173.98,0.00021095,2]
[368107796,1751025048054,-460.0,0.00021095,2]
[368107798,1751025048063,-955.78,0.00021095,2]
[368107800,1751025048073,-631.92,0.00021095,2]
[368107802,1751025048083,-4016.24,0.00021095,2]
[368107804,1751025048095,-1392.47,0.00021095,2]
[368107806,1751025048106,-1659.93,0.00021095,2]
[368107808,1751025048117,-747.26,0.00021095,2]
[368107810,1751025048126,-768.85,0.00021095,2]
[368107812,1751025048136,-581.43,0.00021095,2]
[368107814,1751025048145,-601.87,0.00021095,2]
[368107816,1751025048155,-272.78501,0.00021095,2]
[368107818,1751025048165,-516.57,0.00021095,2]
[368107820,1751025048174,-460.0,0.00021095,2]
[368107822,1751025048183,-151.0,0.00021095,2]
[368107824,1751025048193,-151.0,0.00021095,2]
[368107827,1751025048204,-498.78,0.00021095,2]
[368107829,1751025048213,-724.34,0.00021095,2]
[368107831,1751025048223,-460.0,0.00021095,2]
[368107833,1751025048233,-2778.62,0.00021095,2]
[368107835,1751025048243,-1383.61,0.00021095,2]
[368107837,1751025048253,-918.56,0.00021095,2]
[368107839,1751025048263,-680.31,0.00021095,2]
[368107841,1751025048272,-499.21,0.00021095,2]
[368107843,1751025048282,-2237.58,0.00021095,2]
[368107845,1751025048291,-460.0,0.00021095,2]
[368107847,1751025048302,-503.64,0.00021095,2]
[368107849,1751025048311,-2454.22,0.00021095,2]
[368107851,1751025048321,-3026.27,0.00021095,2]
[368107853,1751025048331,-916.9,0.00021095,2]
[368107855,1751025048340,-460.0,0.00021095,2]
[368107857,1751025048349,-647.64,0.00021095,2]
[368107859,1751025048359,-460.0,0.00021095,2]
[368107861,1751025048369,-5647.51,0.00021095,2]
[368107863,1751025048379,-460.0,0.00021095,2]
[368107865,1751025048388,-581.25,0.00021095,2]
[368107867,1751025048398,-3448.85,0.00021095,2]
[368107869,1751025048408,-460.0,0.00021095,2]
[368107872,1751025048418,-1249.31,0.00021095,2]
[368107873,1751025048427,-3601.13,0.00021095,2]
[368107876,1751025048437,-657.99,0.00021095,2]
[368107878,1751025048447,-45795.97383368,0.00021155,2]
[368107880,1751025048456,-1044.0,0.00021169,2]
[368107882,1751025048465,-151.0,0.00021184,2]
[368107884,1751025048475,-151.0,0.00021184,2]
[368107886,1751025048485,-151.0,0.00021184,2]
[368107888,1751025048494,-151.0,0.00021184,2]
[368107890,1751025048503,-151.0,0.00021184,2]
[368107892,1751025048513,-151.0,0.00021184,2]
[368107894,1751025048523,-167.270606,0.00021184,2]
[368107896,1751025048532,-167.270606,0.00021184,2]
[368107898,1751025048541,-151.0,0.00021184,2]
[368107900,1751025048550,-151.0,0.00021184,2]
[368107902,1751025048560,-151.0,0.00021184,2]
[368107904,1751025048569,-5000.0,0.00021184,2]
[368107906,1751025048578,-4482.86546516,0.00021199,2]
[368107908,1751025048587,-151.0,0.000212,3]
[368107911,1751025048605,-151.0,0.000212,4]
[368107913,1751025048616,-151.0,0.000212,4]
[368107915,1751025048626,-151.0,0.000212,4]
[368107917,1751025048636,-500.0,0.0002123,2]
[368107919,1751025048645,-966.0,0.00021239,2]
[368107921,1751025048655,-2161.0,0.00021239,2]
[368107923,1751025048667,-654.0,0.00021239,2]
[368107925,1751025048677,-8456.76207998,0.00021245,4]